bitfinex/quotes_SOLUSD_20250814
["timestamp","ask_amount","ask_price","bid_price","bid_amount"]
[1755209017324,39.24,189.69,189.67,5.27231507]
[1755209017533,0.67,189.74,189.68,10.59412894]
[1755209017715,39.24,189.73,189.7,10.59412894]
[1755209018228,39.24,189.73,189.7,0.69]
[1755209018938,39.24,189.73,189.68,11.28412894]
[1755209019236,39.24,189.73,189.69,10.59412894]
[1755209019439,39.3,189.76,189.7,0.69]
[1755209019641,49.89412894,189.76,189.69,5.96175918]
[1755209019812,10.59412894,189.74,189.69,5.96175918]
[1755209020007,39.24,189.73,189.69,5.96175918]
[1755209020230,50.50412894,189.73,189.69,5.27175918]
[1755209020447,0.67,189.72,189.67,15.86644401]
[1755209020817,11.26412894,189.71,189.65,10.59412894]
[1755209021020,49.83412894,189.7,189.63,26.69]
[1755209021217,49.83412894,189.7,189.63,11.28412894]
[1755209021418,49.83412894,189.7,189.64,5.27314912]
[1755209021844,3.47203089,189.69,189.64,15.86727806]
[1755209022145,39.24,189.7,189.65,11.28412894]
[1755209022351,39.24,189.7,189.64,5.27314912]
[1755209022352,11.26412894,189.69,189.64,5.27314912]
[1755209022520,14.06865246,189.69,189.64,5.27314912]
[1755209022848,0.67,189.68,189.64,5.27314912]
[1755209023018,39.22,189.67,189.64,5.27314912]
[1755209024323,39.22,189.67,189.63,5.2734272]
[1755209025040,39.22,189.67,189.63,16.55755614]
[1755209025245,39.22,189.67,189.65,10.59412894]
[1755209025747,4.33229157,189.74,189.63,5.2734272]
[1755209025748,26.10678454,189.75,189.66,11.28412894]
[1755209025921,42.69900947,189.74,189.69,10.59412894]
[1755209026115,3.47900947,189.73,189.69,10.59412894]
[1755209026328,3.47900947,189.73,189.7,5.27148128]
[1755209028347,4.14900947,189.73,189.7,5.27148128]
[1755209028945,3.47900947,189.73,189.72,9.097784]
[1755209029145,39.22,189.74,189.72,9.097784]
[1755209029349,39.22,189.74,189.73,9.097784]
[1755209029556,39.28,189.76,189.73,9.097784]
[1755209029735,39.28,189.76,189.75,9.097784]
[1755209029935,42.76319633,189.76,189.75,9.097784]
[1755209030352,47.96066154,189.76,189.75,5.27009222]
[1755209030656,47.96066154,189.76,189.74,9.097784]
[1755209030853,44.47746521,189.76,189.74,9.097784]
[1755209031265,4.14992488,189.75,189.73,5.27064776]
[1755209031431,3.47992488,189.75,189.73,9.097784]
[1755209031636,3.47992488,189.75,189.74,9.097784]
[1755209031943,3.47992488,189.75,189.73,9.097784]
[1755209032144,0.06,189.76,189.73,0.69]
[1755209032332,0.06,189.76,189.75,5.27009222]
[1755209032537,0.06,189.76,189.75,14.36787622]
[1755209033269,49.047784,189.76,189.69,9.097784]
[1755209033460,12.57796298,189.75,189.69,9.097784]
[1755209034054,12.57796298,189.75,189.69,14.36954318]
[1755209034247,3.48017898,189.75,189.69,14.36954318]
[1755209034443,0.67,189.74,189.69,14.36954318]
[1755209034663,39.22,189.73,189.69,14.36954318]
[1755209034967,39.22,189.73,189.7,9.097784]
[1755209035569,39.22,189.73,189.69,28.23894114]
[1755209035963,39.22,189.73,189.7,9.097784]
[1755209036763,39.22,189.73,189.72,9.097784]
[1755209037350,39.22,189.75,189.72,9.097784]
[1755209037993,39.22,189.75,189.73,5.27064776]
[1755209038131,0.06,189.76,189.73,14.36843176]
[1755209038331,0.06,189.76,189.75,9.097784]
[1755209038648,26.0,189.73,189.67,4.415444]
[1755209038857,9.097784,189.68,189.66,0.03]
[1755209039045,39.22,189.67,189.66,0.03]
[1755209039360,52.46988183,189.67,189.66,0.03]
[1755209040056,57.7421969,189.67,189.66,0.03]
[1755209040760,26.0,189.64,189.51,5.27664997]
[1755209041061,67.7421969,189.67,189.51,5.27664997]
[1755209041062,9.097784,189.57,189.51,5.27664997]
[1755209041263,39.22,189.56,189.51,5.27664997]
[1755209041463,39.22,189.56,189.51,14.37443397]
[1755209041868,0.68,189.62,189.55,9.097784]
[1755209042069,39.28,189.61,189.56,9.097784]
[1755209042276,39.96,189.61,189.56,9.097784]
[1755209042477,0.68,189.6,189.55,9.097784]
[1755209042848,39.28,189.61,189.56,9.097784]
[1755209043159,39.96,189.61,189.56,9.097784]
[1755209043359,0.68,189.6,189.55,9.097784]
[1755209043967,0.68,189.6,189.56,5.27537455]
[1755209044559,0.68,189.6,189.56,14.37315855]
[1755209044767,39.28,189.61,189.56,14.37315855]
[1755209044964,39.28,189.61,189.57,9.097784]
[1755209045360,39.28,189.61,189.56,18.46381092]
[1755209045555,39.28,189.61,189.58,9.097784]
[1755209045759,39.28,189.61,189.59,9.097784]
[1755209046182,39.28,189.61,189.6,5.2742616]
[1755209046486,39.28,189.61,189.6,14.3720456]
[1755209049276,0.06,189.62,189.6,14.3720456]
[1755209049484,0.06,189.62,189.61,9.097784]
[1755209050064,0.06,189.62,189.61,9.757784]
[1755209050383,0.06,189.64,189.61,15.03176743]
[1755209050681,0.06,189.64,189.63,9.097784]
[1755209051190,0.06,189.64,189.63,9.757784]
[1755209051557,0.06,189.64,189.63,15.0312112]
[1755209051865,0.06,189.66,189.63,15.0312112]
[1755209052063,0.06,189.66,189.65,9.097784]
[1755209053573,0.06,189.66,189.65,14.37065507]
[1755209054584,0.06,189.66,189.65,5.27287107]
[1755209054788,0.06,189.66,189.65,14.37065507]
[1755209056286,0.3,189.7,189.65,27.55283276]
[1755209056469,0.3,189.7,189.68,9.097784]
[1755209056670,39.24,189.71,189.68,9.097784]
[1755209057375,39.24,189.71,189.68,0.66]
[1755209057577,39.24,189.71,189.7,9.097784]
[1755209057773,39.24,189.71,189.7,14.36926528]
[1755209058470,39.24,189.71,189.7,5.27148128]
[1755209058664,39.24,189.71,189.7,14.36926528]
[1755209058984,39.22,189.75,189.7,28.20796849]
[1755209059190,39.9,189.75,189.72,9.097784]
[1755209059383,30.0,189.73,189.72,9.097784]
[1755209059777,39.22,189.75,189.72,5.27092557]
[1755209060087,39.9,189.75,189.72,5.27092557]
[1755209060283,39.9,189.75,189.72,14.36870957]
[1755209060695,39.9,189.75,189.72,5.27092557]
[1755209061188,0.68,189.74,189.72,5.27092557]
[1755209061386,0.68,189.74,189.72,14.36870957]
[1755209061584,39.22,189.75,189.72,14.36870957]
[1755209061795,39.9,189.75,189.72,14.36870957]
[1755209061979,39.22,189.75,189.72,5.27092557]
[1755209062178,39.22,189.75,189.17,37.2298375]
[1755209062179,26.0,189.72,189.63,0.66]
[1755209062380,69.22,189.71,189.63,0.66]
[1755209062579,69.9,189.71,189.66,9.097784]
[1755209062799,0.68,189.7,189.63,0.66]
[1755209062974,0.68,189.7,189.6,26.0]
[1755209063174,9.097784,189.65,189.59,9.757784]
[1755209063378,0.68,189.65,189.6,9.097784]
[1755209063701,0.68,189.64,189.59,9.097784]
[1755209063872,0.68,189.64,189.6,5.2742616]
[1755209064885,39.22,189.66,189.6,5.2742616]
[1755209065078,39.9,189.66,189.6,14.3720456]
[1755209065277,48.997784,189.66,189.6,14.3720456]
[1755209066276,9.097784,189.64,189.6,5.2742616]
[1755209066477,9.777784,189.64,189.6,5.2742616]
[1755209067397,0.68,189.64,189.6,5.2742616]
[1755209068977,9.097784,189.62,189.58,5.27459894]
[1755209069301,48.317784,189.62,189.58,5.93459894]
[1755209069487,39.9,189.62,189.58,5.27459894]
[1755209072030,39.22,189.62,189.59,9.777784]
[1755209072194,39.22,189.62,189.6,9.097784]
[1755209072393,39.22,189.62,189.6,9.777784]
[1755209074014,39.22,189.62,189.61,5.27398343]
[1755209074402,39.22,189.65,189.61,5.27398343]
[1755209074914,0.69,189.64,189.61,5.27398343]
[1755209075495,39.22,189.65,189.61,5.27398343]
[1755209075696,39.22,189.65,189.61,14.37176743]
[1755209075893,39.91,189.65,189.61,14.37176743]
[1755209076425,39.91,189.68,189.64,9.097784]
[1755209076608,30.0,189.65,189.64,9.097784]
[1755209077299,39.91,189.68,189.64,9.097784]
[1755209077507,39.91,189.68,189.65,14.37065507]
[1755209077693,39.22,189.68,189.65,14.37065507]
[1755209077891,39.22,189.68,189.66,0.68]
[1755209078096,0.69,189.72,189.67,9.097784]
[1755209078404,30.0,189.68,189.66,0.68]
[1755209078919,39.22,189.72,189.67,0.68]
[1755209079315,39.22,189.72,189.65,18.45504876]
[1755209079515,0.69,189.71,189.67,14.37009907]
[1755209079696,0.69,189.7,189.67,14.37009907]
[1755209079902,0.69,189.69,189.67,5.27231507]
[1755209080101,0.69,189.71,189.67,14.37009907]
[1755209080324,0.69,189.7,189.67,5.27231507]
[1755209080920,9.787784,189.7,189.67,5.27231507]
[1755209081119,0.69,189.69,189.67,5.27231507]
[1755209081430,39.2,189.68,189.67,5.27231507]
[1755209082325,0.75,189.73,189.67,28.23088675]
[1755209082522,39.95,189.73,189.71,9.097784]
[1755209082727,39.95,189.73,189.7,9.097784]
[1755209082728,30.0,189.72,189.7,9.097784]
[1755209083047,30.0,189.72,189.71,9.097784]
[1755209083625,30.0,189.72,189.71,14.36898741]
[1755209085032,39.26,189.73,189.71,14.36898741]
[1755209085237,0.06,189.75,189.74,26.0]
[1755209085408,0.06,189.75,189.74,9.097784]
[1755209085608,0.06,189.75,189.72,27.20709255]
[1755209085937,0.06,189.75,189.74,35.097784]
[1755209088057,0.06,189.75,189.74,31.27036997]
[1755209088216,0.06,189.75,189.74,14.36815397]
[1755209088831,0.06,189.75,189.74,15.04815397]
[1755209089228,0.06,189.75,189.74,14.36815397]
[1755209089432,0.06,189.75,189.74,15.04815397]
[1755209090325,0.06,189.76,189.74,15.04815397]
[1755209090515,0.06,189.76,189.75,9.777784]
[1755209092249,0.75,189.76,189.67,5.27231507]
[1755209092546,30.75,189.76,189.73,9.097784]
[1755209093117,48.967784,189.75,189.7,26.0]
[1755209093438,0.69,189.74,189.7,35.097784]
[1755209094231,39.18,189.75,189.71,14.36898741]
[1755209094461,39.18,189.75,189.72,9.097784]
[1755209095059,39.18,189.75,189.73,9.097784]
[1755209095360,30.0,189.74,189.73,9.097784]
[1755209095570,30.0,189.74,189.73,9.777784]
[1755209095755,30.0,189.74,189.73,0.68]
[1755209095957,30.0,189.74,189.73,9.097784]
[1755209096464,0.06,189.76,189.73,14.36843176]
[1755209096763,0.06,189.76,189.75,9.097784]
[1755209097555,0.06,189.76,189.73,5.27064776]
[1755209097754,0.06,189.76,189.75,9.097784]
[1755209097951,0.06,189.76,189.75,14.36787622]
[1755209099344,0.06,189.76,189.75,9.097784]
[1755209100159,0.06,189.76,189.75,9.777784]
[1755209100376,1e-08,189.76,189.75,9.777784]
[1755209101552,1e-08,189.76,189.75,15.04787622]
[1755209101751,1e-08,189.77,189.75,15.04787622]
[1755209101973,1e-08,189.77,189.76,9.787784]
[1755209102769,1e-08,189.79,189.78,26.0]
[1755209102977,1e-08,189.79,189.78,35.62470991]
[1755209103279,0.2,189.81,189.78,36.31470991]
[1755209103449,1e-08,189.81,189.8,9.097784]
[1755209103788,1e-08,189.82,189.8,14.36648789]
[1755209104076,1e-08,189.82,189.81,9.787784]
[1755209104252,1e-08,189.82,189.81,35.787784]
[1755209104456,1e-08,189.82,189.81,9.787784]
[1755209105874,1e-08,189.9,189.84,26.0]
[1755209106071,1e-08,189.9,189.81,64.56940772]
[1755209106072,1e-08,189.92,189.91,26.0]
[1755209106277,1e-08,189.93,189.91,36.31434921]
[1755209106574,1e-08,189.93,189.92,35.787784]
[1755209107854,1e-08,189.93,189.92,41.05315889]
[1755209110076,1e-08,189.93,189.92,40.36315889]
[1755209111777,1e-08,189.93,189.92,41.05315889]
[1755209111980,1e-08,189.96,189.94,9.097784]
[1755209112279,0.72,190.05,189.96,26.0]
[1755209112478,0.72,190.05,190.04,9.097784]
[1755209113966,0.72,190.05,190.04,14.35983409]
[1755209114168,0.72,190.05,190.04,9.097784]
[1755209114676,0.72,190.08,190.04,9.097784]
[1755209114880,47.02618028,190.1,190.06,9.097784]
[1755209114881,0.72,190.07,190.06,9.097784]
[1755209115051,0.72,190.07,190.02,5.26260393]
[1755209115258,0.72,190.07,190.06,9.097784]
[1755209116268,0.72,190.07,190.06,14.35928036]
[1755209116463,39.86,190.1,190.06,14.35928036]
[1755209116673,0.72,190.09,190.07,9.097784]
[1755209116977,0.72,190.08,190.07,9.097784]
[1755209117368,0.72,190.08,190.06,5.26149636]
[1755209117675,0.72,190.08,190.07,9.097784]
[1755209118572,0.72,190.08,190.0,13.15782966]
[1755209118778,0.72,190.08,190.04,9.097784]
[1755209119280,0.72,190.08,190.07,9.097784]
[1755209119486,39.14,190.1,190.07,9.097784]
[1755209119980,0.72,190.09,190.07,9.097784]
[1755209120565,0.72,190.09,190.07,14.35875022]
[1755209121172,39.14,190.1,190.08,9.097784]
[1755209121356,39.86,190.1,190.08,9.097784]
[1755209121886,39.86,190.1,190.07,14.35875022]
[1755209122067,0.72,190.09,190.02,5.26260393]
[1755209122262,0.72,190.11,190.08,9.097784]
[1755209122582,39.1,190.13,190.09,5.260666]
[1755209122583,0.72,190.1,190.09,5.260666]
[1755209122957,0.72,190.13,190.09,9.097784]
[1755209123158,4.33566274,190.22,190.07,18.41402949]
[1755209123159,0.72,190.15,190.07,18.41402949]
[1755209123474,5.19755639,190.16,190.1,26.69]
[1755209123674,5.19755639,190.16,190.14,9.097784]
[1755209124000,30.0,190.15,190.1,26.69]
[1755209124198,30.0,190.15,190.11,0.69]
[1755209124481,0.72,190.17,190.11,0.69]
[1755209124890,0.72,190.17,190.12,5.25983589]
[1755209125196,0.72,190.16,190.14,9.097784]
[1755209125566,0.72,190.15,190.11,14.35789334]
[1755209125757,0.72,190.14,190.1,31.26036645]
[1755209125991,0.72,190.14,190.11,9.097784]
[1755209126291,0.72,190.14,190.12,9.097784]
[1755209126463,0.72,190.17,190.13,9.097784]
[1755209126783,39.12,190.19,190.14,9.097784]
[1755209126784,0.72,190.16,190.14,9.097784]
[1755209126990,48.217784,190.19,190.12,5.25983589]
[1755209127168,0.72,190.15,190.12,5.25983589]
[1755209127365,48.217784,190.19,190.12,5.25983589]
[1755209127679,0.72,190.17,190.1,31.26026493]
[1755209127862,0.72,190.17,190.12,9.097784]
[1755209128065,0.72,190.16,190.12,9.097784]
[1755209128561,0.72,190.18,190.12,0.69]
[1755209128757,0.72,190.18,190.1,31.26026493]
[1755209129188,9.817784,190.18,190.12,9.097784]
[1755209129380,9.097784,190.18,190.12,9.097784]
[1755209129565,0.72,190.17,190.12,9.097784]
[1755209129778,39.12,190.19,190.1,31.26026493]
[1755209130094,0.72,190.16,190.12,9.097784]
[1755209130276,0.72,190.15,190.12,9.097784]
[1755209131380,0.72,190.15,190.11,14.35774924]
[1755209132389,0.72,190.15,190.11,5.25996524]
[1755209132604,9.797784,190.14,190.08,9.097784]
[1755209132795,0.7,190.13,190.08,9.097784]
[1755209132979,0.7,190.13,190.1,9.097784]
[1755209133307,9.097784,190.11,190.04,5.26205009]
[1755209133494,9.097784,190.08,190.01,9.757784]
[1755209133808,0.7,190.07,190.01,0.66]
[1755209133989,9.097784,190.06,190.01,0.66]
[1755209134172,9.797784,190.07,190.01,9.757784]
[1755209135296,9.797784,190.07,190.02,5.26260393]
[1755209135475,0.7,190.06,190.02,5.26260393]
[1755209135675,0.7,190.05,190.02,5.26260393]
[1755209136478,0.7,190.05,190.01,5.2628809]
[1755209138084,0.7,190.05,190.01,5.9228809]
[1755209139382,48.977784,190.08,190.02,0.66]
[1755209139710,39.88,190.08,190.02,9.757784]
[1755209139874,48.977784,190.08,190.02,9.757784]
[1755209140376,39.18,190.08,189.95,0.03]
[1755209140574,9.097784,190.01,189.97,5.29397594]
[1755209140770,48.257784,190.02,189.97,5.29397594]
[1755209141075,39.86,190.02,189.97,5.29397594]
[1755209141269,39.86,190.02,189.97,5.95397594]
[1755209142102,39.16,190.02,189.97,5.95397594]
[1755209142309,0.7,190.01,189.97,5.95397594]
[1755209142505,0.7,190.06,190.0,9.097784]
[1755209142686,0.7,190.06,190.02,9.097784]
[1755209143208,0.7,190.06,190.01,9.097784]
[1755209143507,0.7,190.06,190.02,5.26260393]
[1755209144016,0.7,190.06,190.02,15.02038793]
[1755209144204,39.14,190.07,190.03,9.097784]
[1755209144384,39.84,190.07,190.03,9.097784]
[1755209145101,39.84,190.07,190.02,15.02038793]
[1755209145412,39.84,190.07,190.04,5.26205009]
[1755209146087,0.7,190.06,190.04,5.26205009]
[1755209149187,0.7,190.06,190.04,14.35983409]
[1755209149188,3.47722142,190.06,190.04,14.35983409]
[1755209149389,39.14,190.07,190.04,14.35983409]
[1755209149585,39.78,190.07,190.04,14.35983409]
[1755209149990,39.78,190.07,190.04,5.26205009]
[1755209150303,3.4816116,190.06,190.04,5.26205009]
[1755209151403,39.78,190.07,190.04,5.26205009]
[1755209152099,0.7,190.06,190.02,5.26260393]
[1755209152299,3.48360454,190.06,190.02,14.36038793]
[1755209152505,0.7,190.05,190.02,5.26260393]
[1755209153002,3.48360454,190.06,190.02,5.26260393]
[1755209153184,0.7,190.04,190.01,26.0]
[1755209153509,0.7,190.04,190.01,31.26276372]
[1755209154003,3.48360454,190.06,190.01,31.26276372]
[1755209154214,0.7,190.05,190.01,31.26276372]
[1755209154380,3.48360454,190.06,190.01,37.81541919]
[1755209154577,4.18360454,190.06,190.01,31.26276372]
[1755209154778,39.08,190.07,190.03,5.89265547]
[1755209155194,39.08,190.07,190.03,6.55265547]
[1755209155509,39.08,190.07,190.04,5.26205009]
[1755209156017,39.08,190.07,190.04,11.15470556]
[1755209156382,0.7,190.12,190.06,5.89265547]
[1755209156583,43.26931825,190.12,190.08,5.89265547]
[1755209156813,3.48931825,190.11,190.08,5.89265547]
[1755209157505,0.06,190.1,190.08,5.89265547]
[1755209157685,0.06,190.1,190.08,11.1533768]
[1755209157886,0.06,190.1,190.08,5.26072133]
[1755209158086,0.06,190.1,190.08,11.1533768]
[1755209162282,0.06,190.1,190.01,26.0]
[1755209162283,0.06,190.1,190.09,5.930666]
[1755209162486,0.06,190.1,190.09,11.82332147]
[1755209165906,0.06,190.12,190.11,26.0]
[1755209166210,0.06,190.12,190.11,31.89265547]
[1755209166517,0.06,190.12,190.11,26.0]
[1755209166713,0.06,190.12,190.11,31.89265547]
[1755209168001,0.06,190.12,190.09,5.930666]
[1755209168002,0.06,190.12,190.09,5.260666]
[1755209168196,0.06,190.12,190.08,31.26087093]
[1755209168418,0.06,190.12,190.08,37.8235264]
[1755209168990,0.06,190.12,190.09,5.89265547]
[1755209169215,0.06,190.12,190.1,5.89265547]
[1755209169518,0.06,190.12,190.09,6.56265547]
[1755209169700,0.06,190.12,190.1,0.67]
[1755209169891,0.06,190.12,190.09,6.56265547]
[1755209170085,0.06,190.12,190.1,5.26038926]
[1755209170996,6.57265547,190.11,190.05,0.67]
[1755209171192,0.68,190.1,190.06,5.26124069]
[1755209172191,5.89265547,190.11,190.06,5.26124069]
[1755209172192,5.89265547,190.11,190.07,0.67]
[1755209172399,0.68,190.11,190.07,0.67]
[1755209172917,0.68,190.11,190.06,11.15389616]
[1755209173101,0.68,190.11,190.06,11.82389616]
[1755209173703,0.68,190.11,190.07,0.67]
[1755209173899,0.68,190.11,190.07,6.56265547]
[1755209174101,39.12,190.12,190.08,5.26094276]
[1755209174300,0.06,190.12,190.1,5.89265547]
[1755209174516,0.06,190.12,190.11,5.89265547]
[1755209174819,0.06,190.12,190.1,6.56265547]
[1755209175011,0.06,190.12,190.1,0.67]
[1755209175208,0.06,190.12,190.08,37.15359823]
[1755209175629,0.06,190.12,190.08,37.82359823]
[1755209175815,0.06,190.12,190.09,0.67]
[1755209176317,0.06,190.12,190.1,11.82304473]
[1755209176706,0.06,190.12,190.1,11.15304473]
[1755209176896,0.06,190.12,190.11,6.56265547]
[1755209178820,0.06,190.12,190.11,11.82276803]
[1755209179006,0.06,190.12,190.11,5.26011256]
[1755209180405,0.06,190.12,190.11,11.82276803]
[1755209182004,0.06,190.12,190.11,5.26011256]
[1755209182218,0.06,190.12,190.11,5.93011256]
[1755209182425,0.06,190.12,190.11,11.82276803]
[1755209183908,0.06,190.14,190.13,26.0]
[1755209184212,0.06,190.15,190.11,18.41039397]
[1755209184530,0.06,190.15,190.12,6.56265547]
[1755209184694,0.06,190.15,190.11,18.41039397]
[1755209184900,6.57265547,190.14,190.1,0.03]
[1755209185218,0.68,190.13,190.1,26.03]
[1755209186512,0.06,190.15,190.12,5.89265547]
[1755209186832,0.06,190.15,190.11,0.67]
[1755209187008,0.06,190.15,190.13,5.25955924]
[1755209188027,0.74,190.15,190.13,5.25955924]
[1755209189135,0.74,190.15,190.12,5.25983589]
[1755209189601,0.06,190.15,190.12,5.25983589]
[1755209189803,0.74,190.15,190.12,5.25983589]
[1755209190336,0.74,190.15,190.11,5.26004362]
[1755209190827,0.74,190.15,190.11,5.93004362]
[1755209192032,0.06,190.15,190.11,5.93004362]
[1755209194729,0.06,190.15,190.12,0.67]
[1755209195543,0.06,190.15,190.12,5.92972118]
[1755209195714,0.06,190.15,190.12,5.25972118]
[1755209196029,0.06,190.15,190.12,5.92972118]
[1755209199332,0.06,190.15,190.11,0.03]
[1755209199333,31.89265547,190.13,190.11,0.03]
[1755209199540,49.09175248,190.12,190.11,0.03]
[1755209200535,54.35158837,190.12,190.11,0.03]
[1755209201144,84.35158837,190.12,190.11,0.03]
[1755209202832,78.4589329,190.12,190.11,0.03]
[1755209203150,84.35158837,190.12,190.11,0.03]
[1755209205319,54.35158837,190.12,190.11,0.03]
[1755209206239,58.69827936,190.12,190.11,0.03]
[1755209206430,88.69827936,190.12,190.11,0.03]
[1755209207344,84.35158837,190.12,190.11,0.03]
[1755209210155,31.89265547,190.11,190.1,0.03]
[1755209210327,62.55265547,190.11,190.1,0.03]
[1755209211628,67.81276803,190.11,190.1,0.03]
[1755209212135,67.81276803,190.11,190.02,0.67]
[1755209212136,26.0,190.01,189.97,0.03]
[1755209212445,31.89265547,189.98,189.97,0.03]
[1755209212647,70.93265547,189.98,189.97,0.03]
[1755209212834,71.59265547,189.98,189.97,0.03]
[1755209213039,36.43394717,189.98,189.97,0.03]
[1755209213233,62.55265547,189.98,189.97,0.03]
[1755209213418,100.93265547,189.98,189.97,0.03]
[1755209213623,76.85636743,189.98,189.97,0.03]
[1755209213826,71.59265547,189.98,189.97,0.03]
[1755209214661,76.85636743,189.98,189.97,0.03]
[1755209215724,31.89265547,189.98,189.97,0.03]
[1755209215957,44.93265547,189.98,189.97,0.03]
[1755209216157,74.93265547,189.98,189.97,0.03]
[1755209217174,44.93265547,189.98,189.97,0.03]
[1755209217868,45.59265547,189.98,189.97,0.03]
[1755209218351,50.76781298,189.98,189.97,0.03]
[1755209218668,80.76781298,189.98,189.97,0.03]
[1755209219548,80.10781298,189.98,189.97,0.03]
[1755209220073,80.76781298,189.98,189.97,0.03]
[1755209220268,50.10781298,189.98,189.97,0.03]
[1755209224051,36.0,189.96,189.79,2.75115176]
[1755209224280,26.0,189.9,189.82,5.89265547]
[1755209224485,74.95265547,189.89,189.82,5.89265547]
[1755209224657,39.06,189.89,189.79,5.26891417]
[1755209224869,44.95265547,189.89,189.82,5.89265547]
[1755209225275,44.95265547,189.89,189.83,5.26787125]
[1755209225475,44.95265547,189.89,189.82,5.89265547]
[1755209225646,44.95265547,189.89,189.81,5.26817079]
[1755209225854,50.21908933,189.89,189.82,5.89265547]
[1755209226152,50.21908933,189.89,189.83,0.71]
[1755209227394,44.32643386,189.89,189.83,0.71]
[1755209228086,39.06,189.89,189.83,11.87043393]
[1755209228267,39.06,189.89,189.84,5.89265547]
[1755209228462,39.06,189.89,189.85,0.71]
[1755209229355,44.98630711,189.89,189.85,0.71]
[1755209229569,44.98630711,189.89,189.83,0.71]
[1755209229768,50.87896258,189.89,189.83,0.71]
[1755209230191,44.98630711,189.89,189.83,6.60265547]
[1755209230396,5.89265547,189.88,189.83,0.71]
[1755209230596,50.87896258,189.89,189.84,0.71]
[1755209231098,39.06,189.89,189.85,0.71]
[1755209231287,39.06,189.89,189.86,0.71]
[1755209233115,39.06,189.89,189.86,5.97702457]
[1755209233596,39.06,189.89,189.86,0.71]
[1755209233979,39.06,189.89,189.85,5.29725844]
[1755209234175,39.72,189.89,189.85,0.74]
[1755209234581,5.89265547,189.86,189.85,0.03]
[1755209234781,39.06,189.86,189.85,0.03]
[1755209235096,39.72,189.86,189.85,0.03]
[1755209235877,39.06,189.86,189.85,0.03]
[1755209237398,39.06,189.86,189.85,6.63265547]
[1755209237695,39.06,189.86,189.85,0.74]
[1755209238574,39.06,189.86,189.85,6.0073163]
[1755209239511,39.06,189.86,189.85,0.74]
[1755209241905,39.06,189.86,189.85,0.03]
[1755209242103,44.32703887,189.86,189.85,0.03]
[1755209242399,50.21969434,189.86,189.85,0.03]
[1755209242590,53.68238153,189.86,189.85,0.03]
[1755209242921,83.68238153,189.86,189.85,0.03]
[1755209243196,26.0,189.83,189.82,0.03]
[1755209243395,74.43534266,189.83,189.82,0.03]
[1755209243877,104.43534266,189.83,189.82,0.03]
[1755209244498,113.54703477,189.83,189.82,0.03]
[1755209245090,113.54688264,189.83,189.82,0.03]
[1755209245396,113.54688264,189.83,189.78,0.1]
[1755209245397,119.43953811,189.83,189.78,0.1]
[1755209245606,5.89265547,189.79,189.78,0.1]
[1755209245814,70.97265547,189.79,189.78,0.1]
[1755209246118,74.43534266,189.79,189.78,0.1]
[1755209246503,83.54468369,189.79,189.78,0.1]
[1755209246700,113.54468369,189.79,189.78,0.1]
[1755209247006,114.20468369,189.79,189.78,0.1]
[1755209247518,114.20278589,189.79,189.78,0.1]
[1755209247719,92.48234113,189.79,189.76,0.03]
[1755209247927,31.89265547,189.77,189.76,0.03]
[1755209248089,78.27543273,189.77,189.76,0.03]
[1755209248289,75.09534266,189.77,189.76,0.03]